bitfinex/quotes_SOLUSD_20241029
["timestamp","ask_amount","ask_price","bid_price","bid_amount"]
[1730162657215,25.6289,177.66,177.64,10.96114263]
[1730162658818,25.6289,177.66,177.63,10.96114263]
[1730162659390,25.6288,177.66,177.63,10.96114263]
[1730162660006,25.6288,177.66,177.59,0.5925953]
[1730162660007,36.58994263,177.66,177.59,0.5925953]
[1730162660204,10.96114263,177.64,177.59,0.5925953]
[1730162660409,10.96114263,177.64,177.59,11.55373793]
[1730162661522,5.6296,177.63,177.59,11.55373793]
[1730162662740,16.59074263,177.63,177.59,0.5925953]
[1730162663333,20.0,177.61,177.59,0.5925953]
[1730162663513,5.6306,177.6,177.59,0.5925953]
[1730162665114,5.6303,177.61,177.59,0.5925953]
[1730162665824,5.6303,177.61,177.59,11.55373793]
[1730162666434,10.96114263,177.64,177.59,11.55373793]
[1730162666651,25.6296,177.63,177.59,11.55373793]
[1730162667240,25.6296,177.63,177.6,10.96114263]
[1730162667809,25.6296,177.63,177.59,11.55373793]
[1730162671124,25.6296,177.63,177.6,10.96114263]
[1730162671448,20.0,177.63,177.62,10.96114263]
[1730162671642,5.6287,177.66,177.62,10.96114263]
[1730162671824,5.6284,177.67,177.64,10.96114263]
[1730162672313,18.41409821,177.68,177.65,10.96114263]
[1730162672921,12.78599821,177.68,177.67,10.96114263]
[1730162673318,5.6262,177.74,177.67,10.96114263]
[1730162673518,11.47207633,177.74,177.7,10.96114263]
[1730162673721,10.96114263,177.73,177.65,15.777]
[1730162674039,22.43321896,177.74,177.69,10.96114263]
[1730162674231,11.47207633,177.74,177.71,10.96114263]
[1730162674731,5.84587633,177.74,177.72,10.96114263]
[1730162676551,11.47207633,177.74,177.72,10.96114263]
[1730162678356,30.96114263,177.73,177.68,10.96114263]
[1730162678672,20.0,177.73,177.69,10.96114263]
[1730162678857,20.0,177.73,177.7,10.96114263]
[1730162679536,30.96114263,177.73,177.68,10.96114263]
[1730162680348,5.6268,177.72,177.68,10.96114263]
[1730162680549,5.6268,177.72,177.69,10.96114263]
[1730162681954,5.6268,177.72,177.68,10.96114263]
[1730162682250,5.6268,177.72,177.69,10.96114263]
[1730162682939,5.6268,177.72,177.7,10.96114263]
[1730162683922,16.58794263,177.72,177.65,14.0726]
[1730162684127,16.58794263,177.72,177.67,10.96114263]
[1730162684329,16.58794263,177.72,177.61,16.4333]
[1730162684330,10.96114263,177.71,177.63,5.6296]
[1730162684560,10.96114263,177.7,177.65,10.96114263]
[1730162685123,10.96114263,177.71,177.65,10.96114263]
[1730162685327,10.96114263,177.71,177.66,10.96114263]
[1730162685941,5.6274,177.7,177.66,10.96114263]
[1730162687654,5.6274,177.7,177.67,10.96114263]
[1730162688833,36.58824263,177.71,177.66,10.96114263]
[1730162689858,30.96114263,177.68,177.63,10.96114263]
[1730162690063,10.96114263,177.67,177.62,10.96114263]
[1730162690383,10.96114263,177.65,177.6,10.96114263]
[1730162690670,10.96114263,177.66,177.6,10.96114263]
[1730162691044,5.629,177.65,177.6,10.96114263]
[1730162691564,5.629,177.65,177.61,10.96114263]
[1730162691768,5.629,177.65,177.62,10.96114263]
[1730162692065,10.96114263,177.67,177.62,10.96114263]
[1730162692254,5.6287,177.66,177.61,10.96114263]
[1730162693661,5.6287,177.66,177.62,10.96114263]
[1730162694772,20.0,177.66,177.62,5.6298]
[1730162695068,20.0,177.66,177.63,10.96114263]
[1730162695459,20.0,177.66,177.62,10.96114263]
[1730162696354,5.629,177.65,177.61,10.96114263]
[1730162696550,5.629,177.65,177.59,0.5925953]
[1730162696759,10.96114263,177.64,177.59,11.55373793]
[1730162697576,20.0,177.63,177.59,0.5925953]
[1730162698151,30.96114263,177.63,177.59,0.5925953]
[1730162698353,36.59144263,177.61,177.59,0.5925953]
[1730162698571,25.6303,177.61,177.59,0.5925953]
[1730162700474,36.59144263,177.61,177.59,0.5925953]
[1730162701548,25.6303,177.61,177.59,0.5925953]
[1730162703578,30.96114263,177.6,177.59,0.5925953]
[1730162704243,20.0,177.6,177.59,0.5925953]
[1730162705655,20.0,177.6,177.59,11.55373793]
[1730162705972,5.6303,177.61,177.59,11.55373793]
[1730162706177,5.6303,177.61,177.6,10.96114263]
[1730162706352,5.6303,177.61,177.59,11.55373793]
[1730162706557,5.6299,177.62,177.59,11.55373793]
[1730162709856,5.6299,177.62,177.59,0.5925953]
[1730162712414,5.6299,177.62,177.59,11.55373793]
[1730162712583,5.6299,177.62,177.6,10.96114263]
[1730162712774,11.46340266,177.63,177.6,10.96114263]
[1730162713285,5.6297,177.63,177.6,10.96114263]
[1730162714882,5.6297,177.63,177.59,0.5925953]
[1730162714883,30.96114263,177.62,177.59,0.5925953]
[1730162715065,20.0,177.62,177.59,0.5925953]
[1730162715268,20.0,177.62,177.59,11.55373793]
[1730162716216,20.0,177.62,177.6,10.96114263]
[1730162716489,20.0,177.62,177.59,0.5925953]
[1730162716490,18.62689296,177.64,177.61,10.96114263]
[1730162716782,18.62689296,177.64,177.62,10.96114263]
[1730162716783,20.0,177.63,177.62,10.96114263]
[1730162716983,24.25629296,177.64,177.62,10.96114263]
[1730162717781,24.25629296,177.64,177.59,0.5925953]
[1730162717970,24.25629296,177.64,177.6,10.96114263]
[1730162718481,24.25629296,177.64,177.62,10.96114263]
[1730162718655,24.25629296,177.64,177.61,10.96114263]
[1730162720866,12.78809102,177.64,177.63,10.96114263]
[1730162723369,5.84040421,177.69,177.63,19.7037]
[1730162723569,22.0658,177.72,177.67,10.96114263]
[1730162723570,5.6271,177.71,177.67,10.96114263]
[1730162723786,16.58824263,177.71,177.65,10.96114263]
[1730162723995,10.96114263,177.69,177.63,10.96114263]
[1730162724384,16.58824263,177.71,177.66,10.96114263]
[1730162724790,5.6277,177.69,177.66,10.96114263]
[1730162725291,5.6277,177.69,177.65,10.96114263]
[1730162725656,5.6277,177.69,177.64,10.96114263]
[1730162726084,20.0,177.68,177.64,10.96114263]
[1730162726299,20.0,177.68,177.63,10.96114263]
[1730162726987,10.96114263,177.66,177.61,10.96114263]
[1730162727485,30.96114263,177.65,177.59,11.55373793]
[1730162728261,16.59064263,177.64,177.59,11.55373793]
[1730162728398,20.0,177.63,177.59,11.55373793]
[1730162729571,5.6295,177.64,177.61,10.96114263]
[1730162729772,25.6287,177.66,177.62,10.96114263]
[1730162730075,5.6287,177.66,177.64,10.96114263]
[1730162730287,40.36602663,177.68,177.63,10.96114263]
[1730162730473,5.628,177.68,177.64,10.96114263]
[1730162731218,5.628,177.68,177.61,10.96114263]
[1730162731219,10.96114263,177.67,177.61,10.96114263]
[1730162731661,5.6287,177.66,177.61,10.96114263]
[1730162732199,16.58984263,177.66,177.61,10.96114263]
[1730162732395,10.96114263,177.64,177.6,14.0765]
[1730162733361,10.96114263,177.65,177.6,25.03764263]
[1730162733568,5.6293,177.64,177.6,25.03764263]
[1730162734189,10.96114263,177.63,177.59,0.5925953]
[1730162734389,10.96114263,177.62,177.59,0.5925953]
[1730162734597,5.6293,177.64,177.59,0.5925953]
[1730162734598,10.96114263,177.61,177.59,0.5925953]
[1730162734776,10.96114263,177.62,177.59,0.5925953]
[1730162735380,10.96114263,177.63,177.59,0.5925953]
[1730162735595,25.6301,177.62,177.59,0.5925953]
[1730162736036,5.6296,177.64,177.61,10.96114263]
[1730162738079,20.0,177.65,177.62,10.96114263]
[1730162738301,16.58954263,177.67,177.62,10.96114263]
[1730162738480,5.6284,177.67,177.63,10.96114263]
[1730162738677,16.58954263,177.67,177.62,10.96114263]
[1730162739106,5.6284,177.67,177.63,10.96114263]
[1730162739406,5.6284,177.67,177.64,10.96114263]
[1730162739616,12.78609198,177.68,177.65,10.96114263]
[1730162739827,12.78609198,177.68,177.66,10.96114263]
[1730162740003,12.78609198,177.68,177.67,10.96114263]
[1730162741512,12.78609198,177.68,177.67,16.58954263]
[1730162742601,5.6266,177.73,177.67,16.58954263]
[1730162742803,20.0,177.72,177.69,10.96114263]
[1730162743110,25.6268,177.72,177.68,10.96114263]
[1730162743891,25.6268,177.72,177.65,14.0718]
[1730162743892,10.96114263,177.71,177.65,14.0718]
[1730162744100,10.96114263,177.68,177.63,10.96114263]
[1730162744305,10.96114263,177.69,177.64,10.96114263]
[1730162744507,30.96114263,177.7,177.65,10.96114263]
[1730162745086,5.6277,177.69,177.65,10.96114263]
[1730162745907,5.6277,177.69,177.66,10.96114263]
[1730162746117,20.0,177.71,177.68,10.96114263]
[1730162746309,5.6268,177.72,177.69,10.96114263]
[1730162746696,5.6268,177.72,177.68,10.96114263]
[1730162748003,16.58794263,177.72,177.67,10.96114263]
[1730162748206,10.96114263,177.7,177.65,16.59004263]
[1730162748400,10.96114263,177.69,177.64,14.0734]
[1730162748594,10.96114263,177.7,177.65,10.96114263]
[1730162749716,5.6277,177.69,177.65,10.96114263]
[1730162750216,5.6277,177.69,177.66,10.96114263]
[1730162750405,5.6277,177.69,177.67,10.96114263]
[1730162750609,5.6277,177.69,177.66,10.96114263]
[1730162750916,10.96114263,177.72,177.66,10.96114263]
[1730162751126,49.403984,177.71,177.66,10.96114263]
[1730162751444,60.36512663,177.71,177.66,10.96114263]
[1730162751800,36.58824263,177.71,177.66,10.96114263]
[1730162753737,25.6271,177.71,177.66,10.96114263]
[1730162754917,25.6271,177.71,177.67,10.96114263]
[1730162755347,20.0,177.72,177.7,10.96114263]
[1730162756019,30.96114263,177.72,177.67,10.96114263]
[1730162756245,10.96114263,177.71,177.66,10.96114263]
[1730162757217,5.627,177.72,177.68,10.96114263]
[1730162757522,5.627,177.72,177.69,10.96114263]
[1730162758228,5.627,177.72,177.68,10.96114263]
[1730162758426,30.96114263,177.74,177.68,10.96114263]
[1730162758620,20.0,177.72,177.69,10.96114263]
[1730162759216,11.474179,177.75,177.7,10.96114263]
[1730162759429,20.0,177.74,177.7,10.96114263]
[1730162759730,30.96114263,177.74,177.69,10.96114263]
[1730162760028,10.96114263,177.7,177.65,10.96114263]
[1730162760417,10.96114263,177.69,177.64,10.96114263]
[1730162760817,10.96114263,177.7,177.65,10.96114263]
[1730162761020,16.58874263,177.7,177.64,5.6292]
[1730162761218,16.58874263,177.7,177.65,10.96114263]
[1730162761734,10.96114263,177.69,177.64,16.59034263]
[1730162761934,10.96114263,177.67,177.61,5.6303]
[1730162762144,10.96114263,177.67,177.61,16.59144263]
[1730162762322,10.96114263,177.66,177.61,5.6303]
[1730162763431,10.96114263,177.66,177.61,16.59144263]
[1730162764424,16.58974263,177.67,177.62,10.96114263]
[1730162764848,20.0,177.67,177.65,10.96114263]
[1730162765141,20.0,177.67,177.61,19.706]
[1730162765142,20.0,177.67,177.64,10.96114263]
[1730162765443,10.96114263,177.67,177.62,16.59094263]
[1730162766742,36.58914263,177.68,177.63,10.96114263]
[1730162766915,25.628,177.68,177.63,10.96114263]
[1730162767621,5.628,177.68,177.63,10.96114263]
[1730162767941,5.628,177.68,177.62,5.6298]
[1730162767942,5.6278,177.69,177.65,10.96114263]
[1730162768318,5.6273,177.71,177.67,10.96114263]
[1730162768610,5.6273,177.71,177.62,35.4108]
[1730162768611,5.85146536,177.73,177.68,10.96114263]
[1730162768839,5.85146536,177.73,177.62,63.6607]
[1730162768840,5.85146536,177.73,177.69,10.96114263]
[1730162769029,33.67164263,177.74,177.69,10.96114263]
[1730162769239,33.67164263,177.74,177.68,10.96114263]
[1730162769508,10.96114263,177.71,177.66,10.96114263]
[1730162770135,16.58834263,177.71,177.66,10.96114263]
[1730162770333,16.58834263,177.71,177.66,16.58974263]
[1730162771333,16.58834263,177.71,177.65,16.59004263]
[1730162771334,10.96114263,177.7,177.65,16.59004263]
[1730162771531,10.96114263,177.7,177.64,14.0726]
[1730162771532,10.96114263,177.68,177.64,14.0726]
[1730162771728,10.96114263,177.69,177.64,14.0726]
[1730162773257,10.96114263,177.69,177.64,30.66304263]
[1730162773537,10.96114263,177.69,177.64,19.7019]
[1730162774939,10.96114263,177.69,177.64,14.0726]
[1730162774940,10.96114263,177.68,177.64,14.0726]
[1730162775256,10.96114263,177.65,177.6,30.66774263]
[1730162775419,10.96114263,177.63,177.6,14.0763]
[1730162775624,10.96114263,177.62,177.59,0.5925953]
[1730162776644,92.1238,177.68,177.59,0.5925953]
[1730162776847,10.96114263,177.63,177.59,0.5925953]
[1730162777227,10.96114263,177.62,177.59,0.5925953]
[1730162778449,17.14424825,177.62,177.59,0.5925953]
[1730162778627,22.77424825,177.62,177.59,0.5925953]
[1730162783653,17.14424825,177.64,177.59,0.5925953]
[1730162783856,20.0,177.63,177.59,0.5925953]
[1730162784755,17.14424825,177.62,177.59,0.5925953]
[1730162785731,17.14424825,177.61,177.59,0.5925953]
[1730162786139,22.77434825,177.62,177.59,0.5925953]
[1730162787649,5.6301,177.62,177.59,0.5925953]
[1730162787952,5.6301,177.62,177.59,17.73684355]
[1730162788749,5.6301,177.62,177.59,0.5925953]
[1730162790354,17.14424825,177.6,177.59,0.5925953]
[1730162790731,17.14424825,177.61,177.59,0.5925953]
[1730162791654,17.14424825,177.62,177.59,0.5925953]
[1730162793462,5.6303,177.61,177.59,0.5925953]
[1730162793633,22.77414825,177.63,177.59,0.5925953]
[1730162793831,5.6299,177.63,177.6,17.14424825]
[1730162794946,46.55043225,177.64,177.59,17.73684355]
[1730162795153,20.0,177.63,177.59,17.73684355]
[1730162795961,37.14424825,177.63,177.59,0.5925953]
[1730162796131,17.14424825,177.62,177.59,0.5925953]
[1730162796652,22.77434825,177.62,177.59,0.5925953]
[1730162797557,5.6301,177.62,177.59,0.5925953]
[1730162799837,5.6301,177.62,177.59,11.56400191]
[1730162800175,5.6301,177.62,177.59,0.5925953]
[1730162805963,5.6301,177.62,177.59,11.56400191]
[1730162806161,5.6295,177.64,177.61,10.97140661]
[1730162807157,25.629,177.65,177.61,10.97140661]
[1730162807349,5.629,177.65,177.61,10.97140661]
[1730162808754,10.97140661,177.65,177.6,16.60170661]
[1730162809171,10.97140661,177.63,177.59,0.5925953]
[1730162809469,10.97140661,177.64,177.59,11.56400191]
[1730162810448,20.0,177.66,177.6,10.97140661]
[1730162810642,20.0,177.64,177.6,10.97140661]
[1730162810958,20.0,177.64,177.59,6.2234953]
[1730162810959,5.6287,177.66,177.62,10.97140661]
[1730162811140,22.45080668,177.68,177.64,10.97140661]
[1730162811339,5.85120007,177.68,177.67,10.97140661]
[1730162811564,22.0501,177.72,177.67,10.97140661]
[1730162811750,5.6267,177.73,177.69,10.97140661]
[1730162812362,10.97140661,177.72,177.67,10.97140661]
[1730162812867,16.59840661,177.72,177.67,10.97140661]
[1730162814454,20.0,177.72,177.69,10.97140661]
[1730162815976,11.47636439,177.74,177.71,10.97140661]
[1730162817876,11.47636439,177.74,177.7,10.97140661]
[1730162818368,30.97140661,177.73,177.68,10.97140661]
[1730162819375,10.97140661,177.73,177.68,10.97140661]
[1730162819546,5.6268,177.72,177.68,10.97140661]
[1730162821301,5.6268,177.72,177.69,10.97140661]
[1730162821455,5.6265,177.73,177.71,10.97140661]
[1730162822479,11.47616439,177.74,177.72,10.97140661]
[1730162822644,5.84996439,177.74,177.73,10.97140661]
[1730162823374,11.47606439,177.74,177.72,10.97140661]
[1730162823568,11.47606439,177.74,177.71,10.97140661]
[1730162824366,11.47606439,177.74,177.73,10.97140661]
[1730162824576,11.47606439,177.74,177.72,10.97140661]
[1730162825667,11.47606439,177.74,177.71,10.97140661]
[1730162826347,11.47606439,177.74,177.7,10.97140661]
[1730162826758,11.47606439,177.74,177.72,10.97140661]
[1730162827577,5.84996439,177.74,177.73,10.97140661]
[1730162827969,11.47616439,177.74,177.73,10.97140661]
[1730162828160,11.47616439,177.74,177.69,19.6971]
[1730162828161,11.47616439,177.74,177.72,10.97140661]
[1730162828562,11.47616439,177.74,177.69,17.11561947]
[1730162828856,11.47616439,177.74,177.7,17.11561947]
[1730162829259,23.776884,177.73,177.61,15.7283]
[1730162829488,23.776884,177.73,177.65,17.11561947]
[1730162829489,17.11561947,177.71,177.65,17.11561947]
[1730162829783,17.11561947,177.7,177.65,17.11561947]
[1730162830089,17.11561947,177.71,177.66,17.11561947]
[1730162831075,5.6274,177.7,177.66,17.11561947]
[1730162831259,22.74301947,177.7,177.64,17.11561947]
[1730162831586,17.11561947,177.68,177.63,17.11561947]
[1730162831800,17.11561947,177.69,177.64,17.11561947]
[1730162831958,17.11561947,177.69,177.63,17.11561947]
[1730162832701,22.74361947,177.68,177.63,17.11561947]
[1730162835584,5.628,177.68,177.63,17.11561947]
[1730162835784,5.628,177.68,177.64,17.11561947]
[1730162836175,5.628,177.68,177.65,17.11561947]
[1730162836377,5.628,177.68,177.64,17.11561947]
[1730162837368,4.628,177.68,177.64,17.11561947]
[1730162837574,4.628,177.68,177.63,17.11561947]
[1730162837789,4.628,177.68,177.59,28.7472953]
[1730162837790,17.11561947,177.66,177.61,17.11561947]
[1730162837958,17.11561947,177.67,177.62,17.11561947]
[1730162838795,21.74361947,177.68,177.62,17.11561947]
[1730162839280,17.11561947,177.67,177.62,17.11561947]
[1730162840213,5.6287,177.66,177.62,17.11561947]
[1730162841175,5.6287,177.66,177.61,22.74581947]
[1730162841585,5.6287,177.66,177.62,17.11561947]
[1730162841770,5.6287,177.66,177.63,17.11561947]
[1730162842288,5.6287,177.66,177.64,17.11561947]
[1730162843164,25.628,177.68,177.64,17.11561947]
[1730162843372,5.628,177.68,177.64,17.11561947]
[1730162844298,17.11561947,177.7,177.64,17.11561947]
[1730162844470,5.6277,177.69,177.64,17.11561947]
[1730162845278,19.92055441,177.71,177.68,17.11561947]
[1730162845279,5.85255441,177.71,177.68,17.11561947]
[1730162845476,5.6252,177.78,177.7,17.11561947]
[1730162845681,5.6252,177.78,177.67,0.1]
[1730162845682,5.6252,177.78,177.73,17.11561947]
[1730162846269,22.74081947,177.78,177.73,17.11561947]
[1730162846467,22.74081947,177.78,177.66,40.99250347]
[1730162846468,20.0,177.77,177.74,17.11561947]
[1730162848103,25.6252,177.77,177.73,17.11561947]
[1730162848413,42.74081947,177.77,177.72,17.11561947]
[1730162849886,25.6252,177.77,177.72,17.11561947]
[1730162850702,25.6252,177.77,177.76,17.11561947]
[1730162850887,21.9365,177.79,177.76,17.11561947]
[1730162851088,5.6243,177.8,177.78,17.11561947]
[1730162851484,5.6243,177.8,177.7,0.1]
[1730162851485,5.6239,177.82,177.79,17.11561947]
[1730162851789,5.6239,177.82,177.78,17.11561947]
[1730162852391,5.6239,177.82,177.79,17.11561947]
[1730162853814,22.73951947,177.82,177.77,17.11561947]
[1730162854182,17.11561947,177.81,177.76,17.11561947]
[1730162854492,5.6239,177.82,177.79,17.11561947]
[1730162855390,5.6239,177.82,177.78,17.11561947]
[1730162855888,5.6239,177.82,177.79,17.11561947]
[1730162856608,5.6239,177.82,177.8,17.11561947]
[1730162857487,37.02311178,177.86,177.8,17.11561947]
[1730162857696,5.6227,177.85,177.82,17.11561947]
[1730162857897,5.85109231,177.86,177.84,17.11561947]
[1730162858209,5.6225,177.86,177.85,17.11561947]
[1730162858415,22.73641947,177.91,177.85,17.11561947]
[1730162858704,17.11561947,177.9,177.84,17.11561947]
[1730162859209,17.11561947,177.89,177.84,17.11561947]
[1730162859505,37.11561947,177.88,177.83,17.11561947]
[1730162859705,5.622,177.87,177.83,17.11561947]
[1730162860613,5.622,177.87,177.84,17.11561947]
[1730162860910,5.622,177.87,177.85,17.11561947]
[1730162861698,25.6214,177.89,177.85,17.11561947]
[1730162862690,25.6214,177.89,177.86,17.11561947]
[1730162863092,25.6214,177.89,177.85,17.11561947]
[1730162864885,42.73701947,177.89,177.84,17.11561947]
[1730162865288,42.73701947,177.89,177.81,19.6838]
[1730162865289,5.6214,177.89,177.87,17.11561947]
[1730162865500,5.6214,177.89,177.86,17.11561947]
[1730162865716,5.6214,177.89,177.85,17.11561947]
[1730162866410,5.6214,177.89,177.86,17.11561947]
[1730162867710,5.6208,177.91,177.88,17.11561947]
[1730162868786,25.6205,177.92,177.88,17.11561947]
[1730162868990,42.73611947,177.92,177.87,17.11561947]
[1730162870387,42.73611947,177.92,177.86,17.11561947]
[1730162870583,17.11561947,177.91,177.86,17.11561947]
[1730162870787,5.6211,177.9,177.86,17.11561947]
[1730162871710,17.11561947,177.89,177.84,17.11561947]
[1730162871907,17.11561947,177.88,177.83,17.11561947]
[1730162872091,5.6211,177.9,177.85,17.11561947]
[1730162872293,5.6211,177.9,177.81,19.6838]
[1730162872294,5.6211,177.9,177.86,17.11561947]
[1730162872695,5.6211,177.9,177.85,17.11561947]
[1730162873718,5.6211,177.9,177.87,17.11561947]
[1730162874304,5.6211,177.9,177.88,17.11561947]
[1730162874803,20.0,177.92,177.88,17.11561947]
[1730162875120,5.6208,177.91,177.88,17.11561947]
[1730162875356,5.6208,177.91,177.87,17.11561947]
[1730162875612,22.73641947,177.91,177.86,17.11561947]
[1730162875793,17.11561947,177.89,177.84,17.11561947]
[1730162876195,17.11561947,177.9,177.85,17.11561947]
[1730162877103,5.6214,177.89,177.85,17.11561947]
[1730162878412,22.73701947,177.89,177.84,17.11561947]
[1730162878717,5.6214,177.89,177.85,17.11561947]
[1730162879145,22.73701947,177.89,177.84,17.11561947]
[1730162879710,17.11561947,177.88,177.83,17.11561947]
[1730162880020,5.6214,177.89,177.84,17.11561947]
[1730162880220,22.73701947,177.89,177.84,17.11561947]
[1730162883113,5.6211,177.91,177.86,17.11561947]
[1730162883302,5.6211,177.91,177.83,19.6816]
[1730162883303,5.6211,177.91,177.87,17.11561947]
[1730162883521,5.6204,177.93,177.9,17.11561947]
[1730162883839,12.76580266,177.95,177.91,17.11561947]
[1730162884533,12.76580266,177.95,177.91,10.92887731]
[1730162884730,18.38530266,177.95,177.91,10.92887731]
[1730162885151,10.92887731,177.94,177.89,10.92887731]
[1730162885432,29.31417997,177.95,177.9,10.92887731]
[1730162885638,10.92887731,177.94,177.88,30.60487731]
[1730162886033,10.92887731,177.92,177.87,16.55087731]
[1730162886432,17.08459401,177.92,177.87,17.08459401]
[1730162887748,17.08459401,177.93,177.88,17.08459401]
[1730162888443,17.08459401,177.92,177.87,17.08459401]
[1730162888644,22.70519401,177.92,177.87,17.08459401]
[1730162890127,22.70519401,177.92,177.86,19.6782]
[1730162890359,17.08459401,177.87,177.82,14.0587]
[1730162890548,17.08459401,177.85,177.82,14.0587]
[1730162890732,16.2294,177.9,177.82,14.0587]
[1730162890733,17.08459401,177.86,177.82,14.0587]
[1730162891544,5.622,177.87,177.82,31.14329401]
[1730162891545,17.08459401,177.87,177.82,31.14329401]
[1730162891738,17.08459401,177.88,177.83,17.08459401]
[1730162894556,17.08459401,177.87,177.82,31.14329401]
[1730162895160,17.08459401,177.86,177.82,14.0587]
[1730162895452,17.08459401,177.87,177.82,14.0587]
[1730162895953,17.08459401,177.87,177.82,19.6823]
[1730162896374,17.08459401,177.86,177.82,19.6823]
[1730162896545,17.08459401,177.85,177.8,5.6242]
[1730162896845,17.08459401,177.84,177.79,22.70919401]
[1730162897059,17.08459401,177.85,177.79,22.70919401]
[1730162897427,17.08459401,177.86,177.8,17.08459401]
[1730162898153,17.08459401,177.86,177.81,5.6239]
[1730162899155,17.08459401,177.87,177.81,36.76839401]
[1730162899652,17.08459401,177.86,177.81,36.76839401]
[1730162899835,17.08459401,177.86,177.81,19.6838]
[1730162900032,17.08459401,177.85,177.81,19.6838]
[1730162901451,17.08459401,177.85,177.81,14.0599]
[1730162901452,22.70729401,177.85,177.81,14.0599]
[1730162901750,22.70699401,177.86,177.81,19.6838]
[1730162903034,6.1666,177.89,177.83,17.08459401]
[1730162903241,17.08459401,177.85,177.81,14.0599]
[1730162903446,11.7882,177.89,177.81,14.0599]
[1730162903447,17.08459401,177.84,177.81,14.0599]
[1730162903732,17.08459401,177.84,177.79,22.70909401]
[1730162903950,17.08459401,177.84,177.79,5.6245]
[1730162904499,17.08459401,177.84,177.79,22.70909401]
[1730162904850,17.08459401,177.84,177.79,36.77059401]
[1730162905053,17.08459401,177.87,177.82,17.08459401]
[1730162905225,17.08459401,177.88,177.82,17.08459401]
[1730162905434,17.08459401,177.87,177.82,17.08459401]
[1730162906142,17.08459401,177.87,177.81,17.08459401]
[1730162906345,17.08459401,177.83,177.78,17.08459401]
[1730162907144,17.08459401,177.84,177.78,17.08459401]
[1730162907461,17.08459401,177.85,177.79,17.08459401]
[1730162908540,17.08459401,177.84,177.79,22.70899401]
[1730162908946,5.6229,177.85,177.79,22.70899401]
[1730162909139,17.08459401,177.84,177.79,22.70899401]
[1730162909741,17.08459401,177.85,177.8,17.08459401]
[1730162909943,17.08459401,177.86,177.8,17.08459401]
[1730162910340,22.70659401,177.87,177.82,17.08459401]
[1730162910561,17.08459401,177.88,177.83,17.08459401]
[1730162911235,17.08459401,177.87,177.82,17.08459401]
[1730162911949,22.70679401,177.87,177.82,17.08459401]
[1730162912366,17.08459401,177.86,177.81,5.6238]
[1730162913042,17.08459401,177.86,177.81,22.70839401]
[1730162914763,17.08459401,177.87,177.81,36.76829401]
[1730162915268,17.08459401,177.86,177.81,19.6837]
[1730162915451,17.08459401,177.85,177.81,19.6837]
[1730162915798,5.6218,177.88,177.79,5.6245]
[1730162915799,17.08459401,177.83,177.79,5.6245]
[1730162918068,17.08459401,177.82,177.78,5.6248]
[1730162918560,29.398584,177.88,177.78,19.6871]
[1730162918561,17.08459401,177.83,177.78,19.6871]
[1730162918756,17.08459401,177.82,177.78,19.6871]
[1730162918965,17.08459401,177.81,177.78,19.6871]
[1730162919137,17.08459401,177.81,177.78,14.0623]
[1730162919563,17.08459401,177.81,177.78,19.6872]
[1730162920559,17.08459401,177.79,177.75,14.0645]
[1730162921451,17.08459401,177.8,177.75,14.0645]
[1730162922337,17.08459401,177.8,177.75,19.6903]
[1730162922539,17.08459401,177.77,177.75,14.0645]
[1730162923355,17.08459401,177.76,177.71,14.0671]
[1730162923556,17.08459401,177.76,177.71,31.15169401]
[1730162923955,17.08459401,177.78,177.73,17.08459401]
[1730162924467,17.08459401,177.78,177.73,22.71079401]
[1730162925965,17.08459401,177.77,177.73,5.6262]
[1730162926173,17.08459401,177.78,177.73,5.6262]
[1730162928164,17.08459401,177.78,177.73,36.77699401]
[1730162928470,10.95187475,177.78,177.73,30.64427475]
[1730162928654,36.57587475,177.81,177.76,10.95187475]
[1730162928851,10.95187475,177.78,177.73,30.64427475]
[1730162929269,10.95187475,177.77,177.73,19.6924]
[1730162929493,5.6239,177.81,177.73,30.64427475]
[1730162929655,10.95187475,177.79,177.73,30.64427475]
[1730162929845,10.95187475,177.78,177.73,30.64427475]
[1730162931477,16.57677475,177.78,177.73,19.6924]
[1730162931682,10.95187475,177.77,177.73,19.6924]
[1730162931883,25.6239,177.81,177.75,10.95187475]
[1730162932054,10.95187475,177.79,177.74,10.95187475]
[1730162932257,10.95187475,177.79,177.73,30.64427475]
[1730162932472,10.95187475,177.78,177.73,30.64427475]
[1730162932859,10.95187475,177.79,177.73,30.64427475]
[1730162933061,16.57647475,177.79,177.73,30.64427475]
[1730162933369,10.95187475,177.8,177.75,10.95187475]
[1730162933578,20.0,177.79,177.75,10.95187475]
[1730162934456,20.0,177.79,177.75,16.57767475]
[1730162934651,30.95187475,177.79,177.75,5.6258]